fUSD/lending_fUSD_20250124
["ID","MTS","AMOUNT","RATE_DAILY","PERIOD"]
[350194031,1737682240415,-500.0,0.00017351,2]
[350194033,1737682240424,-500.0,0.00017351,2]
[350194035,1737682240434,-500.0,0.00017351,2]
[350194037,1737682240447,-300.0,0.00017351,2]
[350194039,1737682240456,-500.0,0.00017351,2]
[350194041,1737682240465,-500.0,0.00017351,2]
[350194043,1737682240477,-502.75490522,0.00017351,2]
[350194045,1737682240486,-500.0,0.00017351,2]
[350194047,1737682240496,-500.0,0.00017351,2]
[350194049,1737682240505,-500.0,0.00017351,2]
[350194051,1737682240517,-500.0,0.00017351,2]
[350194053,1737682240528,-500.0,0.00017351,2]
[350194055,1737682240537,-500.68071562,0.00017351,2]
[350194057,1737682240547,-500.0,0.00017351,2]
[350194059,1737682240556,-500.0,0.00017351,2]
[350194061,1737682240566,-452.15095068,0.00017351,2]
[350194063,1737682240576,-501.563395,0.00017351,2]
[350194065,1737682240585,-500.83100181,0.00017351,2]
[350194067,1737682240594,-502.11788159,0.00017351,2]
[350194069,1737682240605,-500.0,0.00017351,2]
[350194071,1737682240614,-501.43516634,0.00017351,2]
[350194073,1737682240623,-500.0,0.00017351,2]
[350194075,1737682240632,-500.0,0.00017351,2]
[350194077,1737682240642,-500.0,0.00017351,2]
[350194079,1737682240651,-500.0,0.00017351,2]
[350194081,1737682240659,-500.0,0.00017351,2]
[350194083,1737682240669,-2033.9064,0.00017428,2]
[350194085,1737682240679,-1276.1551,0.00017428,2]
[350194087,1737682240688,-108411.05821323,0.00017528,2]
[350194089,1737682240697,-500.0,0.00017529,2]
[350194091,1737682240706,-500.0,0.00017529,2]
[350194093,1737682240715,-500.0,0.00017529,2]
[350194095,1737682240726,-500.0,0.00017529,2]
[350194097,1737682240735,-172.30564277,0.00017625,2]
[350194099,1737682240744,-500.77899603,0.0001766,2]
[350194101,1737682240754,-182.36,0.00017701,2]
[350194103,1737682240763,-478.0,0.00017705,2]
[350194105,1737682240772,-227.27,0.00017759,2]
[350194107,1737682240781,-1101.57,0.0001779,2]
[350194108,1737682240790,-508.07313922,0.00017791,2]
[350194110,1737682240800,-500.0,0.00017799,2]
[350194112,1737682240809,-500.0,0.00017799,2]
[350194114,1737682240818,-500.0,0.00017799,2]
[350194116,1737682240827,-500.0,0.00017799,2]
[350194118,1737682240836,-500.0,0.00017799,2]
[350194120,1737682240846,-500.0,0.00017799,2]
[350194122,1737682240855,-638.46,0.00017799,2]
[350194124,1737682240865,-645.67,0.00017799,2]
[350194126,1737682240874,-500.0,0.00017799,2]
[350194128,1737682240883,-507.68,0.00017799,2]
[350194130,1737682240893,-616.29,0.00017799,2]
[350194132,1737682240902,-500.0,0.00017799,2]
[350194134,1737682240912,-500.0,0.00017799,2]
[350194136,1737682240921,-500.0,0.00017799,2]
[350194138,1737682240930,-500.0,0.00017799,2]
[350194140,1737682240939,-500.0,0.00017799,2]
[350194142,1737682240948,-558.60069756,0.00017799,2]
[350194144,1737682240957,-500.0,0.00017799,2]
[350194146,1737682240966,-558.41310022,0.00017799,2]
[350194148,1737682240975,-500.0,0.00017799,2]
[350194150,1737682240984,-500.0,0.00017799,2]
[350194152,1737682240993,-500.0,0.00017799,2]
[350194154,1737682241004,-518.25362379,0.00017799,2]
[350194156,1737682241018,-500.0,0.00017799,2]
[350194158,1737682241028,-500.0,0.000178,2]
[350194160,1737682241038,-500.0,0.000178,2]
[350194162,1737682241047,-862.085454,0.000178,2]
[350194164,1737682241056,-500.0,0.000178,2]
[350194166,1737682241065,-526.75,0.000178,2]
[350194168,1737682241075,-1134.55,0.000178,2]
[350194170,1737682241084,-536.04,0.000178,2]
[350194172,1737682241093,-330.179545,0.000178,2]
[350194174,1737682241102,-500.0,0.000178,2]
[350194176,1737682241113,-526.6,0.000178,2]
[350194177,1737682241122,-661.31,0.000178,2]
[350194178,1737682241132,-500.0,0.000178,2]
[350194179,1737682241142,-500.0,0.000178,2]
[350194180,1737682241151,-500.0,0.000178,2]
[350194181,1737682241161,-500.0,0.000178,2]
[350194182,1737682241170,-500.0,0.000178,2]
[350194183,1737682241180,-500.0,0.000178,2]
[350194184,1737682241190,-500.0,0.000178,2]
[350194185,1737682241199,-510.05,0.000178,2]
[350194186,1737682241209,-637.36,0.000178,2]
[350194187,1737682241219,-500.0,0.000178,2]
[350194188,1737682241229,-589.67,0.000178,2]
[350194189,1737682241239,-500.0,0.000178,2]
[350194190,1737682241249,-500.0,0.000178,2]
[350194191,1737682241258,-500.0,0.000178,2]
[350194192,1737682241269,-500.0,0.000178,2]
[350194193,1737682241278,-500.0,0.000178,2]
[350194194,1737682241289,-747.35,0.000178,2]
[350194195,1737682241299,-625.11,0.000178,2]
[350194196,1737682241308,-1065.12,0.000178,2]
[350194197,1737682241317,-500.0,0.000178,2]
[350194198,1737682241327,-500.0,0.000178,2]
[350194199,1737682241336,-500.0,0.000178,2]
[350194200,1737682241352,-521.14,0.000178,2]
[350194201,1737682241362,-500.0,0.000178,2]
[350194202,1737682241371,-500.0,0.000178,2]
[350194203,1737682241380,-500.0,0.000178,2]
[350194204,1737682241390,-500.0,0.000178,2]
[350194205,1737682241399,-643.81,0.000178,2]
[350194206,1737682241408,-500.0,0.000178,2]
[350194207,1737682241419,-1054.37,0.000178,2]
[350194208,1737682241428,-500.0,0.000178,2]
[350194209,1737682241440,-500.0,0.000178,2]
[350194210,1737682241450,-508.57,0.000178,2]
[350194211,1737682241459,-500.0,0.000178,2]
[350194212,1737682241468,-500.0,0.000178,2]
[350194213,1737682241478,-674.05,0.000178,2]
[350194214,1737682241488,-236.95761212,0.000178,2]
[350194215,1737682241497,-500.0,0.000178,2]
[350194216,1737682241506,-528.49775825,0.000178,2]
[350194217,1737682241519,-536.47489904,0.000178,2]
[350194218,1737682241527,-513.39236031,0.000178,2]
[350194219,1737682241537,-500.0,0.000178,2]
[350194220,1737682241546,-500.0,0.000178,2]
[350194221,1737682241556,-500.0,0.000178,2]
[350194222,1737682241566,-500.0,0.000178,2]
[350194223,1737682241575,-500.0,0.000178,2]
[350194224,1737682241584,-635.3,0.000178,2]
[350194225,1737682241594,-500.0,0.000178,2]
[350194226,1737682241604,-500.0,0.000178,2]
[350194227,1737682241613,-843.31,0.000178,2]
[350194228,1737682241623,-545.00640873,0.000178,2]
[350194229,1737682241632,-500.0,0.000178,2]
[350194230,1737682241641,-500.0,0.00017801,2]
[350194231,1737682241652,-500.0,0.00017801,2]
[350194232,1737682241661,-500.0,0.00017801,2]
[350194233,1737682241670,-500.0,0.00017801,2]
[350194234,1737682241679,-500.0,0.00017801,2]
[350194235,1737682241689,-500.0,0.00017801,2]
[350194236,1737682241699,-500.0,0.00017801,2]
[350194237,1737682241708,-500.0,0.00017801,2]
[350194238,1737682241718,-500.0,0.00017801,2]
[350194239,1737682241728,-536.14,0.00017801,2]
[350194240,1737682241737,-500.0,0.00017801,2]
[350194241,1737682241746,-500.0,0.00017801,2]
[350194242,1737682241756,-500.0,0.00017801,2]
[350194243,1737682241766,-500.0,0.00017801,2]
[350194244,1737682241777,-500.0,0.00017801,2]
[350194245,1737682241786,-500.0,0.00017801,2]
[350194246,1737682241796,-500.0,0.00017801,2]
[350194247,1737682241805,-500.0,0.00017801,2]
[350194248,1737682241815,-500.0,0.00017801,2]
[350194249,1737682241825,-500.0,0.00017801,2]
[350194250,1737682241835,-455.84519385,0.00017801,2]
[350194251,1737682241845,-500.0,0.00017801,2]
[350194252,1737682241854,-500.0,0.00017801,2]
[350194253,1737682241865,-500.0,0.00017801,2]
[350194254,1737682241874,-500.0,0.00017801,2]
[350194255,1737682241884,-500.0,0.00017801,2]
[350194256,1737682241894,-500.0,0.00017801,2]
[350194257,1737682241907,-500.0,0.00017801,2]
[350194258,1737682241919,-500.0,0.00017801,2]
[350194259,1737682241927,-500.0,0.00017801,2]
[350194260,1737682241937,-500.0,0.00017801,2]
[350194261,1737682241947,-500.0,0.00017801,2]
[350194262,1737682241957,-241.6502302,0.00017801,2]
[350194263,1737682241966,-500.0,0.00017801,2]
[350194264,1737682241976,-500.0,0.00017801,2]
[350194265,1737682241986,-500.0,0.00017801,2]
[350194266,1737682241995,-500.0,0.00017801,2]
[350194267,1737682242004,-500.0,0.00017801,2]
[350194268,1737682242014,-500.0,0.00017801,2]
[350194269,1737682242023,-500.0,0.00017801,2]
[350194270,1737682242032,-500.0,0.00017801,2]
[350194271,1737682242042,-500.0,0.00017801,2]
[350194272,1737682242051,-500.0,0.00017801,2]
[350194273,1737682242231,-500.0,0.00017801,2]
[350194274,1737682242241,-500.0,0.00017801,2]
[350194275,1737682242251,-500.0,0.00017801,2]
[350194276,1737682242261,-500.0,0.00017801,2]
[350194277,1737682242270,-500.0,0.00017801,2]
[350194278,1737682242280,-500.0,0.00017801,2]
[350194279,1737682242289,-500.0,0.00017801,2]
[350194280,1737682242298,-500.0,0.00017801,2]
[350194281,1737682242308,-500.0,0.00017801,2]
[350194282,1737682242318,-500.0,0.00017801,2]
[350194283,1737682242327,-500.0,0.00017801,2]
[350194284,1737682242336,-500.0,0.00017801,2]
[350194285,1737682242346,-500.0,0.00017801,2]
[350194286,1737682242355,-500.0,0.00017801,2]
[350194287,1737682242364,-183.11,0.00017801,2]
[350194288,1737682242374,-500.0,0.00017801,2]
[350194289,1737682242384,-500.0,0.00017801,2]
[350194290,1737682242393,-500.0,0.00017801,2]
[350194291,1737682242403,-500.0,0.00017801,2]
[350194292,1737682242413,-500.0,0.00017801,2]
[350194293,1737682242423,-509.33173991,0.00017801,2]
[350194294,1737682242433,-500.0,0.00017801,2]
[350194295,1737682242446,-759.88,0.00017801,2]
[350194296,1737682242456,-500.0,0.00017801,2]
[350194297,1737682242465,-500.0,0.00017801,2]
[350194298,1737682242475,-1378.08,0.00017801,2]
[350194299,1737682242487,-500.0,0.00017801,2]
[350194300,1737682242496,-500.0,0.00017801,2]
[350194301,1737682242506,-622.59814745,0.00017801,2]
[350194302,1737682242516,-500.0,0.00017801,2]
[350194303,1737682242526,-525.27,0.00017801,2]
[350194304,1737682242535,-500.0,0.00017801,2]
[350194305,1737682242544,-500.0,0.00017801,2]
[350194306,1737682242553,-500.0,0.00017801,2]
[350194307,1737682242563,-500.0,0.00017801,2]
[350194308,1737682242572,-500.0,0.00017801,2]
[350194309,1737682242582,-162.40838249,0.00017801,2]
[350194310,1737682242591,-344.68669416,0.00017801,2]
[350194311,1737682242601,-500.0,0.00017801,2]
[350194312,1737682242611,-500.0,0.00017801,2]
[350194313,1737682242621,-500.0,0.00017801,2]
[350194314,1737682242630,-500.0,0.00017801,2]
[350194315,1737682242640,-500.0,0.00017801,2]
[350194316,1737682242649,-500.0,0.00017801,2]
[350194317,1737682242659,-500.0,0.00017801,2]
[350194318,1737682242669,-519.18,0.00017803,2]
[350194319,1737682242679,-500.0,0.00017803,2]
[350194320,1737682242689,-1269.36204296,0.000179,2]
[350194321,1737682242698,-167.39,0.0001796,2]
[350194322,1737682242708,-1434.42895864,0.00017975,2]
[350194323,1737682242718,-1269.36204272,0.00018038,2]
[350194324,1737682242727,-800.0,0.00018068,2]
[350194325,1737682242736,-500.0,0.00018073,2]
[350194326,1737682242746,-500.0,0.00018073,2]
[350194327,1737682242755,-500.0,0.00018073,2]
[350194328,1737682242765,-500.0,0.00018073,2]
[350194329,1737682242774,-645.67,0.00018073,2]
[350194330,1737682242784,-500.0,0.00018073,2]
[350194331,1737682242793,-616.29,0.00018073,2]
[350194332,1737682242803,-500.0,0.00018073,2]
[350194333,1737682242812,-500.0,0.00018073,2]
[350194334,1737682242822,-222.34655616,0.00018073,2]
[350194335,1737682242832,-359.93022174,0.00018073,2]
[350194336,1737682242841,-500.0,0.00018073,2]
[350194337,1737682242851,-500.0,0.00018073,2]
[350194338,1737682242861,-500.0,0.00018074,2]
[350194339,1737682242871,-500.0,0.00018074,2]
[350194340,1737682242881,-500.0,0.00018074,2]
[350194341,1737682242890,-526.75,0.00018074,2]
[350194342,1737682242899,-1134.55,0.00018074,2]
[350194344,1737682242908,-536.04,0.00018074,2]
[350194345,1737682242917,-500.0,0.00018074,2]
[350194347,1737682242927,-661.31,0.00018074,2]
[350194349,1737682242936,-500.0,0.00018074,2]
[350194351,1737682242946,-500.0,0.00018074,2]
[350194352,1737682242955,-500.0,0.00018074,2]
[350194353,1737682242965,-510.05,0.00018074,2]
[350194354,1737682242974,-637.36,0.00018074,2]
[350194355,1737682242983,-500.0,0.00018074,2]
[350194356,1737682242992,-589.67,0.00018074,2]
[350194357,1737682243002,-500.0,0.00018074,2]
[350194358,1737682243011,-500.0,0.00018074,2]
[350194359,1737682243021,-500.0,0.00018074,2]
[350194360,1737682243030,-500.0,0.00018074,2]
[350194361,1737682243039,-747.35,0.00018074,2]
[350194362,1737682243049,-625.11,0.00018074,2]
[350194363,1737682243058,-1065.12,0.00018074,2]
[350194364,1737682243068,-500.0,0.00018074,2]
[350194365,1737682243077,-500.0,0.00018074,2]
[350194366,1737682243087,-500.0,0.00018074,2]
[350194367,1737682243096,-500.0,0.00018074,2]
[350194368,1737682243106,-1054.37,0.00018074,2]
[350194369,1737682243116,-500.0,0.00018074,2]
[350194370,1737682243126,-508.57,0.00018074,2]
[350194371,1737682243135,-500.0,0.00018074,2]
[350194372,1737682243144,-674.05,0.00018074,2]
[350194373,1737682243154,-500.0,0.00018074,2]
[350194374,1737682243163,-607.10888863,0.00018074,2]
[350194375,1737682243173,-500.0,0.00018074,2]
[350194376,1737682243182,-500.0,0.00018074,2]
[350194377,1737682243192,-500.0,0.00018074,2]
[350194378,1737682243202,-500.0,0.00018074,2]
[350194379,1737682243212,-635.3,0.00018074,2]
[350194380,1737682243221,-587.95261438,0.00018074,2]
[350194381,1737682243231,-500.0,0.00018074,2]
[350194382,1737682243241,-843.31,0.00018074,2]
[350194383,1737682243252,-216.56,0.00018075,2]
[350194384,1737682243261,-500.0,0.00018075,2]
[350194385,1737682243271,-500.0,0.00018075,2]
[350194386,1737682243280,-500.0,0.00018075,2]
[350194387,1737682243290,-500.0,0.00018075,2]
[350194388,1737682243299,-500.0,0.00018075,2]
[350194389,1737682243308,-500.0,0.00018075,2]
[350194390,1737682243318,-440.95404765,0.00018075,2]
[350194392,1737682243327,-500.0,0.00018075,2]
[350194393,1737682243337,-500.0,0.00018075,2]
[350194394,1737682243347,-197.51,0.00018075,2]
[350194395,1737682243359,-500.0,0.00018075,2]
[350194396,1737682243369,-500.0,0.00018075,2]
[350194397,1737682243378,-500.0,0.00018075,2]
[350194398,1737682243388,-759.88,0.00018075,2]
[350194399,1737682243398,-241.27784491,0.00018075,2]
[350194401,1737682243407,-1378.08,0.00018075,2]
[350194402,1737682243416,-500.0,0.00018075,2]
[350194403,1737682243426,-500.0,0.00018075,2]
[350194404,1737682243436,-500.0,0.00018075,2]
[350194405,1737682243448,-525.27,0.00018075,2]
[350194406,1737682243458,-500.0,0.00018075,2]
[350194407,1737682243467,-500.0,0.00018075,2]
[350194408,1737682243478,-500.0,0.00018075,2]
[350194410,1737682243489,-500.0,0.00018075,2]
[350194412,1737682243499,-500.0,0.00018075,2]
[350194413,1737682243508,-500.0,0.00018075,2]
[350194414,1737682243520,-500.0,0.00018075,2]
[350194415,1737682243531,-578.86624706,0.00018075,2]
[350194416,1737682243540,-541.38925309,0.00018075,2]
[350194417,1737682243549,-563.54,0.00018077,2]
[350194418,1737682243559,-1075.615,0.00018078,2]
[350194419,1737682243567,-731.43,0.00018082,2]
[350194420,1737682243577,-200.0,0.00018082,2]
[350194421,1737682243587,-1434.42895864,0.00018133,2]
[350194422,1737682243596,-1269.36204272,0.00018176,2]
[350194423,1737682243608,-1000.0,0.000182,2]
[350194424,1737682243618,-297.33,0.00018254,2]
[350194425,1737682243628,-1434.42895864,0.00018292,2]
[350194426,1737682243638,-636.0,0.00018309,2]
[350194427,1737682243648,-150.0,0.00018309,2]
[350194428,1737682243657,-567.0,0.00018309,2]
[350194429,1737682243667,-1864.0,0.00018309,2]
[350194430,1737682243677,-781.0,0.00018309,2]
[350194431,1737682243687,-908.0,0.00018309,2]
[350194432,1737682243696,-1261.0,0.00018309,2]
[350194433,1737682243706,-2948.0,0.00018309,2]
[350194434,1737682243715,-3985.0,0.00018309,2]
[350194435,1737682243724,-538.0,0.00018309,2]
[350194436,1737682243733,-150.0,0.00018309,2]
[350194437,1737682243743,-151.265,0.00018309,2]
[350194438,1737682243753,-1270.0,0.00018309,2]
[350194439,1737682243763,-3904.0,0.00018309,2]
[350194440,1737682243772,-1269.36204272,0.00018314,2]
[350194441,1737682243782,-522.44,0.00018347,2]
[350194442,1737682243791,-500.0,0.00018347,2]
[350194443,1737682243800,-500.0,0.00018347,2]
[350194444,1737682243810,-645.67,0.00018347,2]
[350194445,1737682243820,-500.0,0.00018347,2]
[350194446,1737682243829,-616.29,0.00018347,2]
[350194447,1737682243838,-500.0,0.00018347,2]
[350194448,1737682243847,-500.0,0.00018347,2]
[350194449,1737682243856,-500.0,0.00018347,2]
[350194450,1737682243866,-500.0,0.00018347,2]
[350194451,1737682243875,-500.0,0.00018348,2]
[350194452,1737682243884,-500.0,0.00018348,2]
[350194453,1737682243894,-500.0,0.00018348,2]
[350194454,1737682243903,-526.75,0.00018348,2]
[350194455,1737682243913,-1134.55,0.00018348,2]
[350194456,1737682243922,-536.04,0.00018348,2]
[350194457,1737682243932,-500.0,0.00018348,2]
[350194458,1737682243941,-661.31,0.00018348,2]
[350194459,1737682243951,-500.0,0.00018348,2]
[350194460,1737682243960,-500.0,0.00018348,2]
[350194461,1737682243970,-500.0,0.00018348,2]
[350194462,1737682243980,-510.05,0.00018348,2]
[350194463,1737682243989,-637.36,0.00018348,2]
[350194464,1737682243999,-500.0,0.00018348,2]
[350194465,1737682244008,-589.67,0.00018348,2]
[350194466,1737682244018,-500.0,0.00018348,2]
[350194467,1737682244027,-500.0,0.00018348,2]
[350194468,1737682244037,-500.0,0.00018348,2]
[350194469,1737682244046,-500.0,0.00018348,2]
[350194470,1737682244056,-747.35,0.00018348,2]
[350194471,1737682244065,-625.11,0.00018348,2]
[350194472,1737682244075,-1065.12,0.00018348,2]
[350194473,1737682244085,-500.0,0.00018348,2]
[350194474,1737682244095,-500.0,0.00018348,2]
[350194475,1737682244105,-500.0,0.00018348,2]
[350194476,1737682244116,-500.0,0.00018348,2]
[350194477,1737682244126,-1054.37,0.00018348,2]
[350194478,1737682244135,-500.0,0.00018348,2]
[350194479,1737682244145,-508.57,0.00018348,2]
[350194480,1737682244155,-500.0,0.00018348,2]
[350194481,1737682244164,-674.05,0.00018348,2]
[350194482,1737682244174,-500.0,0.00018348,2]
[350194483,1737682244184,-525.02241552,0.00018348,2]
[350194484,1737682244193,-500.0,0.00018348,2]
[350194485,1737682244203,-500.0,0.00018348,2]
[350194486,1737682244212,-500.0,0.00018348,2]
[350194487,1737682244222,-635.3,0.00018348,2]
[350194488,1737682244233,-500.0,0.00018348,2]
[350194489,1737682244243,-843.31,0.00018348,2]
[350194490,1737682244253,-500.0,0.00018349,2]
[350194491,1737682244263,-500.0,0.00018349,2]
[350194492,1737682244272,-437.12,0.00018349,2]
[350194493,1737682244282,-621.71,0.00018349,2]
[350194494,1737682244292,-585.81,0.00018349,2]
[350194495,1737682244301,-500.0,0.00018349,2]
[350194496,1737682244311,-500.0,0.00018349,2]
[350194497,1737682244321,-500.0,0.00018349,2]
[350194498,1737682244332,-500.0,0.00018349,2]
[350194499,1737682244341,-759.88,0.00018349,2]
[350194500,1737682244352,-1378.08,0.00018349,2]
[350194501,1737682244363,-500.0,0.00018349,2]
[350194502,1737682244373,-500.0,0.00018349,2]
[350194503,1737682244383,-500.0,0.00018349,2]
[350194504,1737682244392,-525.27,0.00018349,2]
[350194505,1737682244402,-500.0,0.00018349,2]
[350194506,1737682244412,-500.0,0.00018349,2]
[350194507,1737682244422,-500.0,0.00018349,2]
[350194508,1737682244431,-500.0,0.00018349,2]
[350194509,1737682244442,-500.0,0.00018349,2]
[350194510,1737682244454,-500.0,0.00018349,2]
[350194511,1737682244464,-500.0,0.00018349,2]
[350194512,1737682244474,-150.0,0.00018417,2]
[350194513,1737682244483,-150.0,0.00018419,2]
[350194514,1737682244493,-150.0,0.0001842,2]
[350194515,1737682244503,-150.0,0.00018425,2]
[350194516,1737682244512,-500.0,0.00018431,2]
[350194517,1737682244521,-500.0,0.00018431,2]
[350194518,1737682244534,-500.0,0.00018431,2]
[350194519,1737682244544,-500.0,0.00018431,2]
[350194520,1737682244554,-500.0,0.00018431,2]
[350194521,1737682244563,-500.0,0.00018431,2]
[350194522,1737682244573,-500.0,0.00018431,2]
[350194523,1737682244582,-500.0,0.00018431,2]
[350194524,1737682244591,-500.0,0.00018431,2]
[350194525,1737682244600,-500.0,0.00018431,2]
[350194526,1737682244610,-500.0,0.00018431,2]
[350194527,1737682244619,-500.0,0.00018431,2]
[350194528,1737682244629,-500.0,0.00018431,2]
[350194529,1737682244638,-500.0,0.00018431,2]
[350194530,1737682244647,-500.0,0.00018431,2]
[350194531,1737682244657,-500.0,0.00018431,2]
[350194532,1737682244667,-500.0,0.00018431,2]
[350194533,1737682244677,-500.0,0.00018431,2]
[350194534,1737682244686,-500.0,0.00018431,2]
[350194535,1737682244695,-500.0,0.00018431,2]
[350194536,1737682244705,-500.0,0.00018431,2]
[350194537,1737682244715,-500.0,0.00018431,2]
[350194538,1737682244724,-500.0,0.00018431,2]
[350194539,1737682244733,-500.0,0.00018431,2]
[350194540,1737682244743,-500.0,0.00018431,2]
[350194541,1737682244752,-500.0,0.00018431,2]
[350194542,1737682244761,-500.0,0.00018431,2]
[350194543,1737682244770,-500.0,0.00018431,2]
[350194544,1737682244780,-500.0,0.00018431,2]
[350194545,1737682244789,-500.0,0.00018431,2]
[350194546,1737682244798,-500.0,0.00018431,2]
[350194547,1737682244808,-500.0,0.00018431,2]
[350194548,1737682244817,-500.0,0.00018431,2]
[350194549,1737682244827,-500.0,0.00018431,2]
[350194550,1737682244836,-500.0,0.00018431,2]
[350194551,1737682244846,-500.0,0.00018431,2]
[350194552,1737682244856,-500.0,0.00018431,2]
[350194553,1737682244865,-500.0,0.00018431,2]
[350194554,1737682244874,-500.0,0.00018431,2]
[350194555,1737682244884,-500.0,0.00018431,2]
[350194556,1737682244894,-500.0,0.00018431,2]
[350194557,1737682244903,-500.0,0.00018431,2]
[350194558,1737682244913,-500.0,0.00018431,2]
[350194559,1737682244922,-500.0,0.00018431,2]
[350194560,1737682244931,-500.0,0.00018431,2]
[350194561,1737682244940,-500.0,0.00018431,2]
[350194562,1737682244950,-500.0,0.00018431,2]
[350194563,1737682244959,-500.0,0.00018431,2]
[350194564,1737682244969,-500.0,0.00018431,2]
[350194565,1737682244978,-500.0,0.00018431,2]
[350194566,1737682244987,-500.0,0.00018431,2]
[350194567,1737682244997,-500.0,0.00018431,2]
[350194568,1737682245006,-500.0,0.00018431,2]
[350194569,1737682245015,-500.0,0.00018431,2]
[350194570,1737682245025,-500.0,0.00018431,2]
[350194571,1737682245034,-500.0,0.00018431,2]
[350194572,1737682245044,-775.0,0.00018431,2]
[350194573,1737682245053,-150.0,0.00018435,2]
[350194574,1737682245062,-150.0,0.00018438,2]
[350194575,1737682245072,-150.0,0.00018442,2]
[350194576,1737682245082,-150.0,0.00018442,2]
[350194577,1737682245092,-150.0,0.00018443,2]
[350194578,1737682245101,-150.0,0.00018446,2]
[350194579,1737682245112,-500.0,0.00018447,2]
[350194580,1737682245122,-500.0,0.00018447,2]
[350194581,1737682245132,-500.0,0.00018447,2]
[350194582,1737682245141,-500.0,0.00018447,2]
[350194583,1737682245151,-500.0,0.00018447,2]
[350194584,1737682245161,-500.0,0.00018447,2]
[350194585,1737682245171,-500.0,0.00018447,2]
[350194586,1737682245180,-500.0,0.00018447,2]
[350194587,1737682245189,-500.0,0.00018447,2]
[350194588,1737682245199,-500.0,0.00018447,2]
[350194589,1737682245208,-500.0,0.00018447,2]
[350194590,1737682245217,-500.0,0.00018447,2]
[350194591,1737682245227,-500.0,0.00018447,2]
[350194592,1737682245236,-500.0,0.00018447,2]
[350194593,1737682245245,-500.0,0.00018447,2]
[350194594,1737682245254,-500.0,0.00018447,2]
[350194595,1737682245264,-500.0,0.00018447,2]
[350194596,1737682245274,-500.0,0.00018447,2]
[350194597,1737682245283,-500.0,0.00018447,2]
[350194598,1737682245292,-500.0,0.00018447,2]
[350194599,1737682245301,-500.0,0.00018447,2]
[350194600,1737682245310,-500.0,0.00018447,2]
[350194601,1737682245319,-500.0,0.00018447,2]
[350194602,1737682245329,-500.0,0.00018447,2]
[350194603,1737682245338,-500.0,0.00018447,2]
[350194604,1737682245348,-500.0,0.00018447,2]
[350194605,1737682245359,-500.0,0.00018447,2]
[350194606,1737682245368,-500.0,0.00018447,2]
[350194607,1737682245378,-500.0,0.00018447,2]
[350194608,1737682245388,-500.0,0.00018447,2]
[350194609,1737682245397,-500.0,0.00018447,2]
[350194610,1737682245408,-500.0,0.00018447,2]